fUST/lending_fUST_20250210
["ID","MTS","AMOUNT","RATE_DAILY","PERIOD"]
[352557801,1739166640999,-500.0,0.00011095,2]
[352557802,1739166641008,-500.0,0.00011095,2]
[352557803,1739166641017,-500.0,0.00011095,2]
[352557804,1739166641026,-500.0,0.00011095,2]
[352557805,1739166641036,-500.0,0.00011095,2]
[352557806,1739166641048,-500.0,0.00011095,2]
[352557807,1739166641057,-502.71504357,0.00011095,2]
[352557808,1739166641066,-294.42050055,0.00011095,2]
[352557809,1739166641076,-501.44177746,0.00011095,2]
[352557810,1739166641086,-500.0,0.00011095,2]
[352557811,1739166641096,-500.0,0.00011095,2]
[352557812,1739166641105,-500.0,0.00011095,2]
[352557813,1739166641115,-500.0,0.00011095,2]
[352557814,1739166641125,-500.0,0.00011095,2]
[352557815,1739166641135,-500.0,0.00011095,2]
[352557816,1739166641145,-500.0,0.00011095,2]
[352557817,1739166641155,-500.0,0.00011095,2]
[352557818,1739166641164,-500.0,0.00011095,2]
[352557819,1739166641173,-500.0,0.00011095,2]
[352557820,1739166641183,-500.0,0.00011095,2]
[352557821,1739166641192,-503.34614275,0.00011095,2]
[352557822,1739166641201,-500.0,0.00011095,2]
[352557823,1739166641211,-500.0,0.00011095,2]
[352557824,1739166641221,-500.0,0.00011095,2]
[352557825,1739166641230,-501.35194165,0.00011095,2]
[352557826,1739166641239,-500.0,0.00011095,2]
[352557827,1739166641248,-500.0,0.00011095,2]
[352557828,1739166641257,-500.0,0.00011095,2]
[352557829,1739166641266,-500.0,0.00011095,2]
[352557830,1739166641276,-500.0,0.00011095,2]
[352557831,1739166641285,-500.0,0.00011095,2]
[352557832,1739166641294,-500.0,0.00011095,2]
[352557833,1739166641305,-500.0,0.00011095,2]
[352557834,1739166641314,-500.0,0.00011095,2]
[352557835,1739166641324,-500.0,0.00011095,2]
[352557836,1739166641333,-500.0,0.00011095,2]
[352557837,1739166641343,-500.0,0.00011095,2]
[352557838,1739166641352,-502.00504471,0.00011095,2]
[352557839,1739166641362,-504.76034347,0.00011095,2]
[352557840,1739166641371,-500.0,0.00011095,2]
[352557841,1739166641380,-500.0,0.00011095,2]
[352557842,1739166641389,-500.0,0.00011095,2]
[352557843,1739166641398,-500.0,0.00011095,2]
[352557844,1739166641407,-500.0,0.00011095,2]
[352557845,1739166641416,-500.0,0.00011095,2]
[352557846,1739166641425,-500.0,0.00011095,2]
[352557847,1739166641434,-500.0,0.00011095,2]
[352557848,1739166641444,-500.0,0.00011095,2]
[352557849,1739166641453,-500.0,0.00011095,2]
[352557850,1739166641463,-500.0,0.00011095,2]
[352557851,1739166641472,-500.0,0.00011095,2]
[352557852,1739166641481,-500.0,0.00011095,2]
[352557853,1739166641491,-500.0,0.00011095,2]
[352557854,1739166641500,-500.0,0.00011095,2]
[352557855,1739166641509,-500.0,0.00011095,2]
[352557856,1739166641519,-500.0,0.00011095,2]
[352557857,1739166641528,-635.12,0.00011095,2]
[352557858,1739166641537,-189.33009834,0.00011095,2]
[352557859,1739166641547,-500.0,0.00011095,2]
[352557860,1739166641556,-500.0,0.00011095,2]
[352557861,1739166641564,-500.0,0.00011095,2]
[352557862,1739166641574,-504.19991711,0.00011095,2]
[352557863,1739166641583,-500.0,0.00011095,2]
[352557864,1739166641593,-500.0,0.00011095,2]
[352557865,1739166641603,-500.0,0.00011095,2]
[352557866,1739166641611,-559.95888678,0.00011095,2]
[352557867,1739166641621,-500.0,0.00011095,2]
[352557868,1739166641630,-500.0,0.00011095,2]
[352557869,1739166641639,-500.0,0.00011095,2]
[352557870,1739166641647,-500.0,0.00011095,2]
[352557871,1739166641656,-500.0,0.00011095,2]
[352557872,1739166641666,-500.0,0.00011095,2]
[352557873,1739166641675,-500.0,0.00011095,2]
[352557874,1739166641684,-920.88,0.00011095,2]
[352557875,1739166641693,-500.0,0.00011095,2]
[352557876,1739166641702,-500.0,0.00011095,2]
[352557877,1739166641711,-500.0,0.00011095,2]
[352557878,1739166641720,-500.0,0.00011095,2]
[352557879,1739166641729,-500.0,0.00011095,2]
[352557880,1739166641738,-500.0,0.00011095,2]
[352557881,1739166641856,-500.0,0.00011095,2]
[352557882,1739166641866,-500.0,0.00011095,2]
[352557883,1739166641875,-500.0,0.00011095,2]
[352557884,1739166641884,-500.0,0.00011095,2]
[352557885,1739166641894,-500.0,0.00011095,2]
[352557886,1739166641903,-500.0,0.00011095,2]
[352557887,1739166641912,-500.0,0.00011095,2]
[352557888,1739166641922,-500.0,0.00011095,2]
[352557889,1739166641931,-500.0,0.00011095,2]
[352557890,1739166641941,-500.0,0.00011095,2]
[352557891,1739166641951,-500.0,0.00011095,2]
[352557892,1739166641960,-501.64554693,0.00011095,2]
[352557893,1739166641969,-3328.95,0.00011095,2]
[352557894,1739166641979,-2894.24,0.00011095,2]
[352557895,1739166641988,-500.0,0.00011095,2]
[352557896,1739166641998,-502.86189205,0.00011095,2]
[352557897,1739166642007,-500.0,0.00011095,2]
[352557898,1739166642016,-500.0,0.00011095,2]
[352557899,1739166642025,-1558.59,0.00011095,2]
[352557900,1739166642035,-1662.48,0.00011095,2]
[352557901,1739166642047,-500.0,0.00011095,2]
[352557902,1739166642056,-947.49,0.00011095,2]
[352557903,1739166642066,-500.0,0.00011095,2]
[352557904,1739166642075,-1902.99,0.00011095,2]
[352557905,1739166642084,-550.72,0.00011095,2]
[352557906,1739166642095,-500.0,0.00011095,2]
[352557907,1739166642104,-500.0,0.00011095,2]
[352557908,1739166642113,-500.0,0.00011095,2]
[352557909,1739166642123,-500.0,0.00011095,2]
[352557910,1739166642133,-500.0,0.00011095,2]
[352557911,1739166642143,-890.25,0.00011095,2]
[352557912,1739166642152,-500.0,0.00011095,2]
[352557914,1739166642162,-500.0,0.00011095,2]
[352557915,1739166642171,-500.0,0.00011095,2]
[352557916,1739166642180,-500.0,0.00011095,2]
[352557917,1739166642189,-500.0,0.00011095,2]
[352557918,1739166642198,-500.0,0.00011095,2]
[352557919,1739166642211,-500.0,0.00011095,2]
[352557920,1739166642220,-909.22,0.00011095,2]
[352557921,1739166642229,-12704.19,0.00011095,2]
[352557922,1739166642239,-500.0,0.00011095,2]
[352557923,1739166642248,-813.55,0.00011095,2]
[352557924,1739166642257,-650.99,0.00011095,2]
[352557925,1739166642266,-6256.34,0.00011095,2]
[352557926,1739166642275,-620.17,0.00011095,2]
[352557927,1739166642284,-500.0,0.00011095,2]
[352557928,1739166642293,-500.0,0.00011095,2]
[352557929,1739166642302,-500.0,0.00011095,2]
[352557930,1739166642311,-500.0,0.00011095,2]
[352557931,1739166642320,-500.0,0.00011095,2]
[352557933,1739166642329,-500.0,0.00011095,2]
[352557935,1739166642338,-514.74,0.00011095,2]
[352557937,1739166642348,-500.0,0.00011095,2]
[352557938,1739166642357,-500.0,0.00011095,2]
[352557939,1739166642366,-500.0,0.00011095,2]
[352557940,1739166642375,-500.0,0.00011095,2]
[352557941,1739166642383,-1152.93,0.00011095,2]
[352557942,1739166642392,-500.0,0.00011095,2]
[352557943,1739166642401,-1159.47,0.00011095,2]
[352557944,1739166642410,-619.77,0.00011095,2]
[352557945,1739166642419,-500.0,0.00011095,2]
[352557946,1739166642428,-500.0,0.00011095,2]
[352557947,1739166642437,-502.25,0.00011095,2]
[352557948,1739166642447,-500.0,0.00011095,2]
[352557950,1739166642456,-500.0,0.00011095,2]
[352557951,1739166642466,-500.0,0.00011095,2]
[352557952,1739166642475,-528.3,0.00011095,2]
[352557953,1739166642484,-500.0,0.00011095,2]
[352557954,1739166642493,-500.0,0.00011095,2]
[352557955,1739166642502,-500.0,0.00011095,2]
[352557956,1739166642512,-500.0,0.00011095,2]
[352557957,1739166642521,-500.0,0.00011095,2]
[352557958,1739166642530,-604.56,0.00011095,2]
[352557959,1739166642540,-500.0,0.00011095,2]
[352557960,1739166642549,-500.0,0.00011095,2]
[352557962,1739166642558,-500.0,0.00011095,2]
[352557964,1739166642567,-876.02,0.00011095,2]
[352557966,1739166642576,-524.85,0.00011095,2]
[352557968,1739166642586,-500.0,0.00011095,2]
[352557969,1739166642596,-500.0,0.00011095,2]
[352557970,1739166642605,-500.0,0.00011095,2]
[352557971,1739166642614,-500.0,0.00011095,2]
[352557972,1739166642623,-500.0,0.00011095,2]
[352557973,1739166642632,-500.0,0.00011095,2]
[352557974,1739166642641,-2117.64,0.00011095,2]
[352557975,1739166642651,-500.0,0.00011095,2]
[352557977,1739166642660,-500.0,0.00011095,2]
[352557978,1739166642669,-500.0,0.00011095,2]
[352557979,1739166642678,-500.0,0.00011095,2]
[352557980,1739166642687,-500.0,0.00011095,2]
[352557981,1739166642696,-500.0,0.00011095,2]
[352557982,1739166642705,-1708.3,0.00011095,2]
[352557983,1739166642714,-500.0,0.00011095,2]
[352557984,1739166642724,-500.0,0.00011095,2]
[352557985,1739166642733,-500.0,0.00011095,2]
[352557987,1739166642742,-505.77718113,0.00011095,2]
[352557988,1739166642751,-747.79,0.00011095,2]
[352557989,1739166642760,-500.0,0.00011095,2]
[352557990,1739166642769,-500.0,0.00011095,2]
[352557991,1739166642777,-504.57193707,0.00011095,2]
[352557992,1739166642786,-2643.34281013,0.0001113,2]
[352557993,1739166642795,-237.39013587,0.00011201,2]
[352557994,1739166642804,-327.31765265,0.00011232,2]
[352557995,1739166642814,-500.0,0.00011232,2]
[352557996,1739166642824,-510.10829942,0.00011232,2]
[352557997,1739166642832,-500.0,0.00011232,2]
[352557998,1739166642842,-161.24409204,0.00011232,2]
[352557999,1739166642851,-500.0,0.00011232,2]
[352558000,1739166642861,-500.0,0.00011232,2]
[352558001,1739166642870,-500.0,0.00011232,2]
[352558002,1739166642879,-500.0,0.00011232,2]
[352558003,1739166642889,-500.0,0.00011232,2]
[352558004,1739166642898,-500.0,0.00011232,2]
[352558005,1739166642907,-392.18716296,0.00011232,2]
[352558006,1739166642917,-500.0,0.00011232,2]
[352558007,1739166642926,-500.0,0.00011232,2]
[352558008,1739166642935,-500.0,0.00011232,2]
[352558009,1739166642944,-500.0,0.00011232,2]
[352558010,1739166642954,-500.0,0.00011232,2]
[352558011,1739166642963,-500.0,0.00011232,2]
[352558012,1739166642972,-500.0,0.00011232,2]
[352558013,1739166642981,-500.0,0.00011232,2]
[352558014,1739166642991,-500.0,0.00011232,2]
[352558015,1739166643000,-500.0,0.00011232,2]
[352558016,1739166643009,-500.0,0.00011232,2]
[352558017,1739166643018,-500.0,0.00011232,2]
[352558018,1739166643027,-500.0,0.00011232,2]
[352558019,1739166643038,-500.0,0.00011232,2]
[352558021,1739166643049,-500.0,0.00011232,2]
[352558023,1739166643059,-500.0,0.00011232,2]
[352558024,1739166643068,-500.0,0.00011232,2]
[352558026,1739166643079,-500.0,0.00011232,2]
[352558028,1739166643088,-214.38248335,0.00011232,2]
[352558030,1739166643097,-500.0,0.00011232,2]
[352558032,1739166643107,-635.12,0.00011232,2]
[352558034,1739166643116,-500.0,0.00011232,2]
[352558036,1739166643127,-423.70414032,0.00011232,2]
[352558039,1739166643136,-500.0,0.00011232,2]
[352558040,1739166643145,-500.0,0.00011232,2]
[352558042,1739166643155,-500.0,0.00011232,2]
[352558044,1739166643164,-500.0,0.00011232,2]
[352558046,1739166643173,-500.0,0.00011232,2]
[352558049,1739166643183,-500.0,0.00011232,2]
[352558051,1739166643192,-500.0,0.00011232,2]
[352558053,1739166643201,-500.0,0.00011232,2]
[352558055,1739166643211,-920.88,0.00011232,2]
[352558056,1739166643221,-500.0,0.00011232,2]
[352558057,1739166643230,-500.0,0.00011232,2]
[352558058,1739166643239,-500.0,0.00011232,2]
[352558059,1739166643249,-500.0,0.00011232,2]
[352558060,1739166643258,-500.0,0.00011232,2]
[352558061,1739166643267,-500.0,0.00011232,2]
[352558062,1739166643276,-500.0,0.00011232,2]
[352558063,1739166643286,-500.0,0.00011232,2]
[352558064,1739166643295,-500.0,0.00011232,2]
[352558065,1739166643304,-500.0,0.00011232,2]
[352558066,1739166643313,-3328.95,0.00011232,2]
[352558067,1739166643322,-500.0,0.00011232,2]
[352558068,1739166643331,-2894.24,0.00011232,2]
[352558069,1739166643341,-201.5,0.00011232,2]
[352558070,1739166643351,-500.0,0.00011232,2]
[352558071,1739166643360,-1558.59,0.00011232,2]
[352558072,1739166643369,-1662.48,0.00011232,2]
[352558073,1739166643378,-501.46,0.00011232,2]
[352558074,1739166643387,-947.49,0.00011232,2]
[352558075,1739166643396,-500.0,0.00011232,2]
[352558076,1739166643405,-1902.99,0.00011232,2]
[352558077,1739166643414,-550.72,0.00011232,2]
[352558078,1739166643423,-500.0,0.00011232,2]
[352558079,1739166643432,-500.0,0.00011232,2]
[352558080,1739166643441,-500.0,0.00011232,2]
[352558081,1739166643450,-890.25,0.00011232,2]
[352558082,1739166643459,-509.34851063,0.00011232,2]
[352558083,1739166643467,-500.0,0.00011232,2]
[352558084,1739166643477,-500.0,0.00011232,2]
[352558085,1739166643485,-500.0,0.00011232,2]
[352558086,1739166643494,-500.0,0.00011232,2]
[352558087,1739166643503,-909.22,0.00011232,2]
[352558088,1739166643512,-12704.19,0.00011232,2]
[352558089,1739166643522,-500.0,0.00011232,2]
[352558090,1739166643531,-813.55,0.00011232,2]
[352558091,1739166643540,-650.99,0.00011232,2]
[352558092,1739166643549,-6256.34,0.00011232,2]
[352558093,1739166643558,-620.17,0.00011232,2]
[352558094,1739166643567,-500.0,0.00011232,2]
[352558095,1739166643575,-500.0,0.00011232,2]
[352558096,1739166643584,-500.0,0.00011232,2]
[352558097,1739166643594,-500.0,0.00011232,2]
[352558098,1739166643602,-500.0,0.00011232,2]
[352558099,1739166643611,-514.74,0.00011232,2]
[352558100,1739166643620,-500.0,0.00011232,2]
[352558101,1739166643629,-500.0,0.00011232,2]
[352558102,1739166643638,-293.3872912,0.00011232,2]
[352558103,1739166643647,-500.0,0.00011232,2]
[352558104,1739166643658,-1152.93,0.00011232,2]
[352558105,1739166643668,-500.0,0.00011232,2]
[352558106,1739166643677,-1159.47,0.00011232,2]
[352558107,1739166643686,-619.77,0.00011232,2]
[352558108,1739166643695,-500.0,0.00011232,2]
[352558109,1739166643705,-500.0,0.00011232,2]
[352558110,1739166643714,-502.25,0.00011232,2]
[352558111,1739166643723,-500.0,0.00011232,2]
[352558112,1739166643732,-528.3,0.00011232,2]
[352558113,1739166643741,-500.0,0.00011232,2]
[352558114,1739166643752,-609.62149974,0.00011232,2]
[352558115,1739166643762,-500.0,0.00011232,2]
[352558116,1739166643771,-604.56,0.00011232,2]
[352558117,1739166643781,-500.0,0.00011232,2]
[352558118,1739166643791,-500.0,0.00011232,2]
[352558119,1739166643800,-876.02,0.00011232,2]
[352558120,1739166643809,-524.85,0.00011232,2]
[352558121,1739166643819,-500.0,0.00011232,2]
[352558122,1739166643828,-500.0,0.00011232,2]
[352558123,1739166643838,-500.0,0.00011232,2]
[352558124,1739166643847,-500.0,0.00011232,2]
[352558125,1739166643857,-500.0,0.00011232,2]
[352558126,1739166643866,-2117.64,0.00011232,2]
[352558127,1739166643876,-500.0,0.00011232,2]
[352558128,1739166643885,-500.0,0.00011232,2]
[352558129,1739166643894,-500.0,0.00011232,2]
[352558130,1739166643903,-401.98145756,0.00011232,2]
[352558131,1739166643913,-1708.3,0.00011232,2]
[352558132,1739166643923,-500.0,0.00011232,2]
[352558133,1739166643932,-747.79,0.00011232,2]
[352558134,1739166643942,-500.0,0.00011232,2]
[352558135,1739166643952,-500.0,0.00011369,2]
[352558136,1739166643961,-500.0,0.00011369,2]
[352558137,1739166643970,-500.0,0.00011369,2]
[352558138,1739166643979,-500.0,0.00011369,2]
[352558139,1739166643988,-500.0,0.00011369,2]
[352558140,1739166643998,-500.0,0.00011369,2]
[352558141,1739166644007,-500.0,0.00011369,2]
[352558142,1739166644016,-500.0,0.00011369,2]
[352558143,1739166644025,-488.50781239,0.00011369,2]
[352558144,1739166644034,-500.0,0.00011369,2]
[352558145,1739166644044,-500.0,0.00011369,2]
[352558146,1739166644056,-500.0,0.00011369,2]
[352558147,1739166644065,-500.0,0.00011369,2]
[352558148,1739166644074,-500.0,0.00011369,2]
[352558149,1739166644083,-500.0,0.00011369,2]
[352558150,1739166644094,-500.0,0.00011369,2]
[352558151,1739166644103,-500.0,0.00011369,2]
[352558152,1739166644112,-500.0,0.00011369,2]
[352558153,1739166644123,-500.0,0.00011369,2]
[352558154,1739166644132,-500.0,0.00011369,2]
[352558155,1739166644141,-500.0,0.00011369,2]
[352558156,1739166644151,-447.48363564,0.00011369,2]
[352558157,1739166644162,-500.0,0.00011369,2]
[352558158,1739166644171,-635.12,0.00011369,2]
[352558159,1739166644179,-500.0,0.00011369,2]
[352558160,1739166644189,-500.0,0.00011369,2]
[352558161,1739166644199,-500.0,0.00011369,2]
[352558162,1739166644208,-500.0,0.00011369,2]
[352558163,1739166644217,-500.0,0.00011369,2]
[352558164,1739166644227,-500.0,0.00011369,2]
[352558165,1739166644235,-500.0,0.00011369,2]
[352558166,1739166644245,-500.0,0.00011369,2]
[352558167,1739166644254,-500.0,0.00011369,2]
[352558168,1739166644263,-920.88,0.00011369,2]
[352558169,1739166644272,-500.0,0.00011369,2]
[352558170,1739166644281,-500.0,0.00011369,2]
[352558171,1739166644290,-500.0,0.00011369,2]
[352558172,1739166644299,-500.0,0.00011369,2]
[352558173,1739166644308,-500.0,0.00011369,2]
[352558174,1739166644317,-500.0,0.00011369,2]
[352558175,1739166644326,-500.0,0.00011369,2]
[352558176,1739166644335,-3328.95,0.00011369,2]
[352558177,1739166644345,-500.0,0.00011369,2]
[352558178,1739166644354,-2894.24,0.00011369,2]
[352558179,1739166644363,-500.0,0.00011369,2]
[352558180,1739166644373,-1558.59,0.00011369,2]
[352558181,1739166644382,-1662.48,0.00011369,2]
[352558182,1739166644392,-947.49,0.00011369,2]
[352558183,1739166644401,-500.0,0.00011369,2]
[352558184,1739166644411,-1902.99,0.00011369,2]
[352558185,1739166644420,-550.72,0.00011369,2]
[352558186,1739166644429,-500.0,0.00011369,2]
[352558187,1739166644438,-500.0,0.00011369,2]
[352558188,1739166644448,-890.25,0.00011369,2]
[352558189,1739166644458,-500.0,0.00011369,2]
[352558190,1739166644467,-500.0,0.00011369,2]
[352558191,1739166644476,-500.0,0.00011369,2]
[352558192,1739166644485,-500.0,0.00011369,2]
[352558193,1739166644495,-909.22,0.00011369,2]
[352558194,1739166644504,-12704.19,0.00011369,2]
[352558195,1739166644513,-500.0,0.00011369,2]
[352558196,1739166644523,-813.55,0.00011369,2]
[352558197,1739166644532,-650.99,0.00011369,2]
[352558198,1739166644542,-6256.34,0.00011369,2]
[352558199,1739166644551,-620.17,0.00011369,2]
[352558200,1739166644560,-480.24814645,0.00011369,2]
[352558201,1739166644569,-500.0,0.00011369,2]
[352558202,1739166644579,-500.0,0.00011369,2]
[352558203,1739166644588,-500.0,0.00011369,2]
[352558204,1739166644600,-325.6901522,0.00011369,2]
[352558205,1739166644609,-514.74,0.00011369,2]
[352558206,1739166644619,-500.0,0.00011369,2]
[352558207,1739166644629,-500.0,0.00011369,2]
[352558208,1739166644638,-500.0,0.00011369,2]
[352558209,1739166644648,-1152.93,0.00011369,2]
[352558210,1739166644658,-1159.47,0.00011369,2]
[352558211,1739166644667,-619.77,0.00011369,2]
[352558212,1739166644676,-500.0,0.00011369,2]
[352558213,1739166644685,-500.0,0.00011369,2]
[352558214,1739166644694,-502.25,0.00011369,2]
[352558215,1739166644703,-500.0,0.00011369,2]
[352558216,1739166644712,-528.3,0.00011369,2]
[352558217,1739166644723,-500.0,0.00011369,2]
[352558218,1739166644732,-500.0,0.00011369,2]
[352558219,1739166644742,-604.56,0.00011369,2]
[352558220,1739166644751,-500.0,0.00011369,2]
[352558221,1739166644760,-500.0,0.00011369,2]
[352558222,1739166644770,-876.02,0.00011369,2]
[352558223,1739166644779,-524.85,0.00011369,2]
[352558224,1739166644788,-500.0,0.00011369,2]
[352558225,1739166644797,-500.0,0.00011369,2]
[352558226,1739166644806,-500.0,0.00011369,2]
[352558227,1739166644815,-500.0,0.00011369,2]
[352558228,1739166644824,-500.0,0.00011369,2]
[352558229,1739166644940,-2117.64,0.00011369,2]
[352558230,1739166644950,-500.0,0.00011369,2]
[352558231,1739166644959,-500.0,0.00011369,2]
[352558232,1739166644969,-1708.3,0.00011369,2]
[352558233,1739166644978,-500.0,0.00011369,2]
[352558234,1739166644987,-747.79,0.00011369,2]
[352558235,1739166644996,-274.94525434,0.00011449,2]
[352558236,1739166645005,-500.0,0.00011449,2]
[352558237,1739166645014,-500.0,0.00011486,2]
[352558238,1739166645024,-500.0,0.00011486,2]
[352558239,1739166645033,-500.0,0.00011495,2]
[352558240,1739166645045,-500.40279845,0.00011495,2]
[352558241,1739166645055,-360.60598572,0.00011495,2]
[352558242,1739166645064,-500.0,0.00011505,2]
[352558243,1739166645073,-500.0,0.00011505,2]
[352558244,1739166645082,-251.70775413,0.00011505,2]
[352558245,1739166645093,-500.0,0.00011505,2]
[352558246,1739166645102,-500.0,0.00011506,2]
[352558247,1739166645111,-500.0,0.00011506,2]
[352558248,1739166645122,-500.0,0.00011506,2]
[352558249,1739166645131,-500.0,0.00011506,2]
[352558250,1739166645140,-500.0,0.00011506,2]
[352558251,1739166645149,-299.9963864,0.00011506,2]
[352558252,1739166645159,-500.0,0.00011506,2]
[352558253,1739166645168,-500.0,0.00011506,2]
[352558254,1739166645178,-500.0,0.00011506,2]
[352558255,1739166645187,-500.0,0.00011506,2]
[352558256,1739166645196,-500.0,0.00011506,2]
[352558257,1739166645206,-500.0,0.00011506,2]
[352558258,1739166645216,-500.0,0.00011506,2]
[352558259,1739166645225,-500.0,0.00011506,2]
[352558260,1739166645235,-500.0,0.00011506,2]
[352558261,1739166645244,-500.0,0.00011506,2]
[352558262,1739166645253,-500.0,0.00011506,2]
[352558263,1739166645262,-500.0,0.00011506,2]
[352558264,1739166645272,-500.0,0.00011506,2]
[352558265,1739166645281,-635.12,0.00011506,2]
[352558266,1739166645290,-500.0,0.00011506,2]
[352558267,1739166645299,-500.0,0.00011506,2]
[352558268,1739166645309,-500.0,0.00011506,2]
[352558269,1739166645318,-500.0,0.00011506,2]
[352558270,1739166645334,-500.0,0.00011506,2]
[352558271,1739166645343,-500.0,0.00011506,2]
[352558272,1739166645352,-500.0,0.00011506,2]
[352558273,1739166645361,-500.0,0.00011506,2]
[352558274,1739166645371,-920.88,0.00011506,2]
[352558275,1739166645380,-500.0,0.00011506,2]
[352558276,1739166645389,-500.0,0.00011506,2]
[352558277,1739166645398,-500.0,0.00011506,2]
[352558278,1739166645407,-500.0,0.00011506,2]
[352558279,1739166645416,-500.0,0.00011506,2]
[352558280,1739166645425,-500.0,0.00011506,2]
[352558281,1739166645435,-3328.95,0.00011506,2]
[352558282,1739166645444,-500.0,0.00011506,2]
[352558283,1739166645453,-2894.24,0.00011506,2]
[352558284,1739166645462,-500.0,0.00011506,2]
[352558285,1739166645472,-1558.59,0.00011506,2]
[352558286,1739166645481,-1662.48,0.00011506,2]
[352558287,1739166645490,-947.49,0.00011506,2]
[352558288,1739166645500,-1902.99,0.00011506,2]
[352558289,1739166645509,-550.72,0.00011506,2]
[352558290,1739166645518,-500.0,0.00011506,2]
[352558291,1739166645527,-500.0,0.00011506,2]
[352558292,1739166645536,-890.25,0.00011506,2]
[352558293,1739166645545,-500.0,0.00011506,2]
[352558294,1739166645554,-500.0,0.00011506,2]
[352558295,1739166645563,-500.0,0.00011506,2]
[352558296,1739166645573,-500.0,0.00011506,2]
[352558298,1739166645582,-909.22,0.00011506,2]
[352558299,1739166645591,-12704.19,0.00011506,2]
[352558300,1739166645600,-500.0,0.00011506,2]
[352558301,1739166645610,-813.55,0.00011506,2]
[352558302,1739166645619,-650.99,0.00011506,2]
[352558303,1739166645627,-6256.34,0.00011506,2]
[352558304,1739166645637,-620.17,0.00011506,2]
[352558305,1739166645646,-500.0,0.00011506,2]
[352558306,1739166645656,-500.0,0.00011506,2]
[352558307,1739166645665,-500.0,0.00011506,2]
[352558308,1739166645675,-514.74,0.00011506,2]
[352558310,1739166645685,-596.01524834,0.00011506,2]
[352558311,1739166645694,-1152.93,0.00011506,2]
[352558313,1739166645703,-1159.47,0.00011506,2]
[352558315,1739166645712,-619.77,0.00011506,2]
[352558317,1739166645722,-500.0,0.00011506,2]
[352558318,1739166645731,-500.0,0.00011506,2]
[352558319,1739166645740,-502.25,0.00011506,2]
[352558320,1739166645749,-500.0,0.00011506,2]
[352558321,1739166645759,-528.3,0.00011506,2]
[352558322,1739166645769,-500.0,0.00011506,2]
[352558323,1739166645779,-500.0,0.00011506,2]
[352558324,1739166645789,-604.56,0.00011506,2]
[352558325,1739166645798,-500.0,0.00011506,2]
[352558326,1739166645808,-500.0,0.00011506,2]
[352558327,1739166645817,-876.02,0.00011506,2]
[352558328,1739166645827,-524.85,0.00011506,2]
[352558329,1739166645837,-500.0,0.00011506,2]
[352558330,1739166645847,-500.0,0.00011506,2]
[352558331,1739166645857,-500.0,0.00011506,2]
[352558332,1739166645867,-500.0,0.00011506,2]
[352558333,1739166645877,-500.0,0.00011506,2]
[352558334,1739166645886,-2117.64,0.00011506,2]